Cogmind - Beta 17.1 @@@ ROGUE MODE // 2026.09.05 @ 14:42:12 Player: Godsword Result: Destroyed self with Mini Grenade Launcher Performance ------------- Evolutions (1) 500 Regions Visited (4) 800 Robots Destroyed (25) 125 Value Destroyed (496) 496 Prototype IDs (1) 20 Alien Tech Used (0) 0 Bonus (4) 4 TOTAL SCORE: 1945 Bonus ------- High Alert Combat Kills 4 Cogmind --------- Core Integrity 0/400 Matter 114/300 Energy 125/125 System Corruption 0% Temperature Cool (0) Movement Flying (40) Location -9/Mines Parts ------- > --- POWER (1) -------- Light Ion Engine > --- PROPULSION (3) --- Improved Flight Unit > --- UTILITY (2) ------ Visual Processing Unit Propulsion Shielding > --- WEAPON (3) ------- Mini Grenade Launcher > --- INVENTORY (5) ---- Small Matter Pod (0) Light Assault Rifle Mining Laser Peak State ------------ > --- POWER ------------ Light Ion Engine > --- PROPULSION ------- Hover Unit Hover Unit Improved Hover Unit > --- UTILITY ---------- Structural Scanner Visual Processing Unit > --- WEAPON ----------- Light Assault Rifle Autogun Mini Grenade Launcher > --- INVENTORY -------- Light Ion Engine Hover Unit Small Matter Pod Light Assault Rifle [Rating: 13] Favorites ----------- Power Light Ion Engine Engine Light Ion Engine Propulsion Flight Unit Hover Unit Hover Unit Flight Unit Flight Unit Utility Structural Scanner Device Structural Scanner Processor Visual Processing Unit Protection Propulsion Shielding Weapon Light Assault Rifle Ballistic Gun Light Assault Rifle Launcher Mini Grenade Launcher Build | -11 -10 -10 -9 -9 ------- Run | Yrd Mat Min Mat Min Slots Evolved 2 | . . . 2 . Power . | . . . . . Propulsion 1 | . . . 1 . Utility . | . . . . . Weapon 1 | . . . 1 . Parts Attached 21 | . . 8 10 3 Power 2 | . . 1 . 1 Engine 2 | . . 1 . 1 Core . | . . . . . Reactor . | . . . . . Propulsion 8 | . . 2 6 . Treads . | . . . . . Leg . | . . . . . Wheel . | . . . . . Hover 4 | . . . 4 . Flight 4 | . . 2 2 . Utility 3 | . . 1 1 1 Device 1 | . . 1 . . Storage . | . . . . . Processor 1 | . . . 1 . Hackware . | . . . . . Protection 1 | . . . . 1 Artifact . | . . . . . Weapon 8 | . . 4 3 1 Energy Gun . | . . . . . Energy Cannon . | . . . . . Ballistic Gun 6 | . . 4 2 . Ballistic Cannon . | . . . . . Launcher 2 | . . . 1 1 Special Weapon . | . . . . . Impact Weapon . | . . . . . Slashing Weapon . | . . . . . Piercing Weapon . | . . . . . Special Melee Weapon . | . . . . . Unidentified Prototypes 1 | . . . 1 . Parts Lost 11 | . . . 11 . Power 1 | . . . 1 . Propulsion 5 | . . . 5 . Utility 1 | . . . 1 . Weapon 4 | . . . 4 . Highest Loss Streak 7 | . . . 7 . To Critical Strikes . | . . . . . Average Backups 3 | . . 3 4 3 Power . | . . . 1 . Propulsion . | . . . . . Utility . | . . . . 1 Weapon 1 | . . 2 1 2 Tool/Special . | . . . . . Unused Backups 1 | . . . . 1 Power . | . . . . . Propulsion . | . . . . . Utility 1 | . . . . 1 Weapon . | . . . . . Tool/Special . | . . . . . Average Slot Usage (%) 71 | . . 69 80 41 Engine 9 | . . 11 9 6 Hover 7 | . . . 12 . Flight 13 | . . 24 9 11 Device 7 | . . 6 9 . Processor 7 | . . . 9 11 Ballistic Gun 20 | . . 26 22 . Launcher 5 | . . . 7 6 Peak Build Rating 13 | . . 6 13 9 Average Rating 7 | . . 5 9 7 On Entrance 2 | . . . 6 5 Avg Prop Armor Cover (%) 3 | . . . 3 . Naked Turns 23 | . 17 6 . . Heaviest Build 9 | . . 6 9 5 Greatest Support 19 | 3 3 8 19 5 Greatest Overweight (x) 1 | . . . 1 . Average Overweight (x) . | . . . . . Largest Inventory Capacity 5 | 5 5 5 5 5 Average Capacity 5 | 5 5 5 5 5 Most Carried 5 | . . 4 5 4 Average Carried 3 | . . 3 4 3 Final Capacity 5 | 5 5 5 5 5 Final Carried 4 | . . 4 4 3 Class Distribution -------------------- 46% | Scavenger-Skirmisher 28% | Scavenger-Mutant 21% | Mutant 3% | Skirmisher Dominant Class ---------------- Mutant | -10/Materials Scavenger-Mutant | -10/Mines Scavenger-Skirmisher | -9/Materials Mutant | -9/Mines Resources | -11 -10 -10 -9 -9 ----------- Run | Yrd Mat Min Mat Min Matter Collected 511 | 200 . 73 172 66 Remotely . | . . . . . Salvage Created 517 | . . 63 445 9 Parts 49 | . . 11 38 . Haulers Intercepted 1 | . . . 1 . Recyclers Shooed 3 | . . 1 2 . Parts Field Recycled . | . . . . . Retrieved Matter . | . . . . . Parts Self-Destructed . | . . . . . Prevented . | . . . . . Parts Restored . | . . . . . Kills | -11 -10 -10 -9 -9 ------- Run | Yrd Mat Min Mat Min Combat Hostiles Destroyed 17 | . . 3 11 3 Guns 5 | . . 3 2 . AOE 12 | . . . 9 3 Classes Destroyed 10 | . . 2 7 1 Worker 1 | . . . 1 . Builder 4 | . . 1 3 . Hauler 1 | . . . 1 . Recycler 2 | . . . 2 . Operator 2 | . . . 2 . Watcher 1 | . . . 1 . Swarmer 7 | . . 3 4 . Grunt 5 | . . . 5 . Sentry 2 | . . . 2 . Assembled 3 | . . . . 3 Best Kill Streak 13 | . . 3 13 3 Combat Bots Only 7 | . . 3 7 3 Max Kills in Single Turn 4 | . . 2 4 2 Gunslinging 1 | . . 1 . . Exploded 4 | . . . 4 2 Melee . | . . . . . Uniques/NPCs Destroyed . | . . . . . Combat | -11 -10 -10 -9 -9 -------- Run | Yrd Mat Min Mat Min Hostile Shots Fired 129 | . 3 14 108 4 Missed 42 | . 1 3 35 3 Hits 87 | . 2 11 73 1 Projectile 87 | . 2 11 73 1 Damage Taken 1137 | . 26 85 987 39 Core 485 | . 26 42 392 25 Absorbed by Shields . | . . . . . Core Remaining (%) 86 | 100 . 72 . . Volleys Fired 59 | . . 16 40 3 Largest 3 | . . 2 3 1 Hottest 73 | . . 40 73 30 Shots Fired 134 | . . 32 99 3 Gun 116 | . . 32 84 . Cannon . | . . . . . Launcher 18 | . . . 15 3 Special . | . . . . . Kinetic 116 | . . 32 84 . Thermal . | . . . . . Explosive 18 | . . . 15 3 Electromagnetic . | . . . . . Robot Hit Streak 7 | . . 4 7 . Robot Miss Streak 5 | . . 5 5 . Penetration Max . | . . . . . Secondary Targets 3 | . . 2 1 . Max Gunslinging Chain 1 | . . 1 1 . Shots Hit Robots 67 | . . 14 53 . Core Hits 52 | . . 7 39 6 Critical Kills 2 | . . 1 1 . Critical Parts Destroyed . | . . . . . Critical Strikes 2 | . . 1 1 . Destroy 2 | . . 1 1 . Melee Attacks . | . . . . . Impact . | . . . . . Slashing . | . . . . . Piercing . | . . . . . Sneak Attacks . | . . . . . Combat Hostiles . | . . . . . Follow-up Attacks . | . . . . . Damage Inflicted 2041 | . . 118 1739 184 Guns 499 | . . 118 381 . Cannons . | . . . . . Explosions 1542 | . . . 1358 184 Melee . | . . . . . Ramming . | . . . . . Kinetic 499 | . . 118 381 . Thermal 175 | . . . 175 . Explosive 1367 | . . . 1183 184 Electromagnetic . | . . . . . Impact . | . . . . . Slashing . | . . . . . Piercing . | . . . . . Highest Corruption . | . . . . . Average Corruption . | . . . . . Corruption Purged . | . . . . . Corruption Blocked . | . . . . . Overload Shots . | . . . . . Overflow Damage 94 | . . . 94 . Projectiles . | . . . . . Explosions 94 | . . . 94 . Melee . | . . . . . Knockbacks . | . . . . . Impact . | . . . . . Kinetic . | . . . . . Secondary . | . . . . . Self-Inflicted Damage 121 | . . . 96 25 Shots 4 | . . . 3 1 Rammed . | . . . . . Targets Rammed . | . . . . . Kicked . | . . . . . Crushed . | . . . . . Highest Temperature 296 | . . 8 296 . Average Temperature 37 | . . 4 46 . Received Heat Transfer 414 | . 15 . 399 . Siege Activations . | . . . . . Martial Activations . | . . . . . Shielding Activations . | . . . . . Robots Disrupted . | . . . . . Combat Hostiles . | . . . . . Robots Corrupted . | . . . . . Combat Hostiles . | . . . . . Parts Fried . | . . . . . Impact Corruptions . | . . . . . Robots Melted . | . . . . . Combat Hostiles . | . . . . . Parts Melted . | . . . . . Heat Transferred 150 | . . . 150 . Parts Sabotaged . | . . . . . Parts Stolen . | . . . . . Parts Stripped . | . . . . . Power Chain Reactions . | . . . . . Alert | -11 -10 -10 -9 -9 ------- Run | Yrd Mat Min Mat Min Maximum Alert Level 2 | . . . 2 . Low Security (%) 75 | 100 100 100 59 100 Level 1 19 | . . . 32 . Level 2 4 | . . . 7 . Level 3 . | . . . . . Level 4 . | . . . . . Level 5 . | . . . . . High Security . | . . . . . Max Security . | . . . . . Peak Influence 475 | . . 70 475 91 Initial 91 | . . . 1 91 Average 122 | . . 32 173 86 Influence Increases 729 | . . 75 634 20 Destroy 0b10 Robot/C 280 | . . 60 220 . Destroy 0b10 Robot/NC 55 | . . 5 50 . Destroy Leader 64 | . . 10 54 . Disable Machine 105 | . . . 105 . Destroy Structure 165 | . . . 145 20 Partial Spotted 15 | . . . 15 . Lose Combat Pursuer 45 | . . . 45 . Influence Decreases 638 | . . 70 405 163 Entered New Map 147 | . . . 4 143 Time Decay 231 | . . 70 141 20 Lost Part 110 | . . . 110 . Purge Threat 150 | . . . 150 . Squads Dispatched 2 | . . . 2 . Investigation 1 | . . . 1 . Extermination . | . . . . . Reinforcement 1 | . . . 1 . Assault . | . . . . . Garrison . | . . . . . Intercept . | . . . . . Searches Triggered . | . . . . . Construction Impeded . | . . . . . Haulers Reinforced . | . . . . . Active Scanning Responses . | . . . . . Cargo Convoy Interrupts . | . . . . . Stealth | -11 -10 -10 -9 -9 --------- Run | Yrd Mat Min Mat Min Distress Signals 4 | . . . 4 . Communications Jammed . | . . . . . Distress Signals . | . . . . . Times Spotted 49 | . 2 3 25 19 Peak Tracking Total 20 | . . 3 7 20 Tactical Retreats 2 | . . . 2 . Traps | -11 -10 -10 -9 -9 ------- Run | Yrd Mat Min Mat Min Traps Triggered 2 | . . . 2 . Indirectly . | . . . . . Trap Hack Attempts . | . . . . . Triggered . | . . . . . Disarmed . | . . . . . Reprogrammed . | . . . . . Reused . | . . . . . Traps Extracted . | . . . . . Installed . | . . . . . Triggered . | . . . . . Machines | -11 -10 -10 -9 -9 ---------- Run | Yrd Mat Min Mat Min Machines Disabled 7 | . . . 7 . Max in Single Turn 4 | . . . 4 . Machines Repaired . | . . . . . Machines Dismantled . | . . . . . Machines Sabotaged . | . . . . . Overloaded Fab Kills . | . . . . . Hacking | -11 -10 -10 -9 -9 --------- Run | Yrd Mat Min Mat Min Machines Accessed 6 | . 1 . 5 . Terminals 6 | . 1 . 5 . Fabricators . | . . . . . Repair Stations . | . . . . . Recycling Units . | . . . . . Scanalyzers . | . . . . . Garrison Access . | . . . . . Total Hacks 11 | . 4 . 7 . Successful 6 | . 1 . 5 . Failed 5 | . 3 . 2 . Catastrophic 1 | . 1 . . . Database Lockouts . | . . . . . Manual 4 | . . . 4 . Terminals 11 | . 4 . 7 . Fabricators . | . . . . . Repair Stations . | . . . . . Recycling Units . | . . . . . Scanalyzers . | . . . . . Garrison Access . | . . . . . Terminal Hacks 4 | . 1 . 3 . Branch Access Points 2 | . 1 . 1 . Unreport Threat 1 | . . . 1 . Zone Layout 1 | . . . 1 . Fabricator Hacks . | . . . . . Repair Station Hacks . | . . . . . Recycling Unit Hacks . | . . . . . Scanalyzer . | . . . . . Garrison Access Hacks . | . . . . . Unauthorized Hacks 2 | . . . 2 . Terminals 2 | . . . 2 . Assimilate 1 | . . . 1 . Botnet 1 | . . . 1 . Fabricators . | . . . . . Repair Stations . | . . . . . Recycling Units . | . . . . . Scanalyzers . | . . . . . Garrison Access . | . . . . . Data Cores Recovered 1 | . . . 1 . Used . | . . . . . Hacking Detections 3 | . 1 . 2 . Full Trace Events 1 | . 1 . . . Feedback Events . | . . . . . Feedback Blocked . | . . . . . Robot Schematics Acquired . | . . . . . Robots Built . | . . . . . Authchips . | . . . . . Time . | . . . . . Total Robot Build Rating . | . . . . . Part Schematics Acquired . | . . . . . Parts Built . | . . . . . Authchips . | . . . . . Time . | . . . . . Total Part Build Rating . | . . . . . Part Studies Acquired . | . . . . . Parts Repaired . | . . . . . Time . | . . . . . Parts Recycled . | . . . . . Recycled Matter . | . . . . . Retrieved Matter . | . . . . . Retrieved Components . | . . . . . Parts Scanalyzed . | . . . . . Part Schematics Acquired . | . . . . . Parts Damaged . | . . . . . Bothacking | -11 -10 -10 -9 -9 ------------ Run | Yrd Mat Min Mat Min Used RIF Installer . | . . . . . Robots Hacked . | . . . . . Non-combat . | . . . . . Combat . | . . . . . Robot Hacks Applied . | . . . . . Relay Couplers Released . | . . . . . Fabnet Peak Effective % . | . . . . . Robots Rewired . | . . . . . Allies Hacked . | . . . . . Hacks Repelled . | . . . . . Allies | -11 -10 -10 -9 -9 -------- Run | Yrd Mat Min Mat Min Total Allies . | . . . . . Largest Group . | . . . . . Highest-Rated Group . | . . . . . Highest-Rated Ally . | . . . . . Total Orders . | . . . . . Ally Attacks . | . . . . . Total Damage . | . . . . . Kills . | . . . . . Allies Corrupted . | . . . . . Allies Melted . | . . . . . Intel | -11 -10 -10 -9 -9 ------- Run | Yrd Mat Min Mat Min Active Infowar (turns) 483 | . . 74 367 42 Optics 382 | . . . 340 42 Structural 389 | . . 74 315 . Robot Analysis Total . | . . . . . Derelict Logs Recovered . | . . . . . Drone Launches . | . . . . . Drone Recoveries . | . . . . . Exploration | -11 -10 -10 -9 -9 ------------- Run | Yrd Mat Min Mat Min Turns Passed 593 | 11 17 156 367 42 Spaces Moved 766 | 21 34 263 365 83 Core 80 | 21 34 14 11 . Treads . | . . . . . Legs . | . . . . . Wheels . | . . . . . Hover 182 | . . . 182 . Flight 504 | . . 249 172 83 Fastest Speed 37 | 50 50 37 37 40 Average Speed 49 | 50 50 37 59 40 Slowest Speed 120 | 50 50 50 120 40 Overloaded Moves . | . . . . . Propulsion Burnouts . | . . . . . Robots Hopped 8 | . . 3 5 . Potential Cave-ins . | . . . . . Cave-ins Triggered . | . . . . . Exploration Rate (%) 26 | 3 8 50 47 22 Regions Visited 4 Branch Regions 2 Pre-discovered Areas . | . . . . . Known Exits Taken 2 | . 1 . 1 . Unknown Exits Taken 2 | 1 . 1 . . Scrap Searched 2 | . . 1 . 1 Spaces Dug . | . . . . . Terrain Destroyed 222 | . . . 192 30 Melee . | . . . . . Projectile . | . . . . . AOE 222 | . . . 192 30 Terrain Rammed . | . . . . . Walls Destroyed . | . . . . . Machines Disabled . | . . . . . Actions | -11 -10 -10 -9 -9 --------- Run | Yrd Mat Min Mat Min Total 870 | 20 33 286 442 89 Wait 24 | . . . 24 . Move 746 | 20 33 256 354 83 Hop 8 | . . 3 5 . Pick Up 8 | . . 3 5 . Fast Attach 14 | . . 6 6 2 Attach 5 | . . . 4 1 Detach . | . . . . . Swap 3 | . . 2 1 . Drop 3 | . . . 3 . Fire 59 | . . 16 40 3 Melee . | . . . . . Ram . | . . . . . Kick . | . . . . . Crush . | . . . . . Escape Stasis . | . . . . . Rewire . | . . . . . Trap . | . . . . . Miscellaneous . | . . . . . Route ------- -11/Scrapyard -10/Materials (discovered 2 exits: *Min x2) -10/Mines (discovered 2 exits: *Mat / [*Sub]) -9/Materials -9/Mines History --------- Turn | Location | Event 4 | -11/Scrapyard | Discovered new exit (range 15) 12 | -11/Scrapyard | Entered Materials 13 | -10/Materials | Discovered new exit (range 14) 21 | -10/Materials | Identified exit to Mines 29 | -10/Materials | Entered Mines 168 | -10/Mines | Discovered new exit (range 12) 182 | -10/Mines | Discovered new exit (range 7) 185 | -10/Mines | Entered Materials 185 | -9/Materials | Evolved 2 slots: Propulsion x1, Weapon x1 195 | -9/Materials | Identified exit to Mines 413 | -9/Materials | Core integrity fell below 50% 448 | -9/Materials | Destroyed 7 combat bots 453 | -9/Materials | Lost 3 parts (1n2w) 530 | -9/Materials | Core integrity fell below 20% 552 | -9/Materials | Entered Mines 565 | -9/Mines | Lost 7 parts (1p3n1u2w) 577 | -9/Mines | Assembled infested the area 594 | -9/Mines | Destroyed self with Mini Grenade Launcher Last Messages --------------- 00550_ Acquired Mining Laser. 00552_ K-01 Serf cleans the Terminal. LOCATION=MINES GOAL=ESCAPE Something is scanning the area. 00553_ K-01 Serf collects debris. 00560_ Searching scrap... 00560_ Found Mni. Grenade Launcher. 00560_ Found Assault Rifle. 00560_ Found Propulsion Shielding. 00560_ Found Ion Engine. 00560_ Found 66 Matter. 00561_ Acquired 66 matter. 00561_ Acquired Mni. Grenade Launcher. 00568_ Acquired Propulsion Shielding. 00577_ ALERT: Infestation in the mines, dispatching Demolisher response squad. 00590_ as-30291 destroyed. 00592_ as-74915 destroyed. 00592_ as-92569 destroyed. Map ----- +----------------------------------------------------+ | ?????????????????????????### ##?????? | | ??????????????????????????# ###??????? | | ?????????????????????###### #????????? | | ?????????????????????# #????????? | | ??????????????????#### ######????????? | | ??????????????????# #?????????????? | | ??????????? ??????# #?????????????? | | ??????????? "?????# ####?????????????? | | ???????? ????# #????????????????? | | ??????? ???# #????????????????? | | ?????? ??# #????????????????? | | ????? ?# ##???????????????? | | ?????# # #####??????????? | | ?????????????# # ##?????????? | | ?????????????## a #?????????? | | ??????????????# a a #?????????? | | ??????????????# # a #?????????? | | ??????????????## ? #?????????? | | ???????????????# ?? ?????????? | | ???????????????## ?? #?????????? | | ????????????????####?## #?????????? | | ?????????????????????# ###???????? | | ?????????????????????# ##??????? | | ??????????????????????# #??????? | | ?????????????????????## #??????? | | ?????????????????????# @ ##??????? | | ?????????????????????## ######???????? | | ??????????????????????####????????????? | | ??????????????????????????????????????? | | ??????????????????????????????????????? | | ??????????????????????????????????????? | | ??????????????????????????????????????? | | ??????????????????????????????????????? | | ??????????????????????????????????????? | | ??????????????????????????????????????? | | ??????????????????????????????????????? | | ??????????????????????????????????????? | | | | | | | | | | | | | | | | | | | | | | | | | | | +----------------------------------------------------+ Best States ------------- Heat Dissipation 28 Energy Generation 10 Energy Capacity 125 Matter Stores 300 Matter Capacity 300 Sight Range 18 Terrain Scan Density 10 Propulsion Shielding 33 Evasion (%) 62 Item Schematics ----------------- None Robot Schematics ------------------ None Fabricated ------------ Nothing Repaired ---------- Nothing Studied --------- None Alien Tech Used ----------------- None Achievements -------------- None Challenges ------------ None Game ------ Seed ScrapoidHardcellInterrupter Manual? 0 Play Time 00:08:49 Cumulative 56.1 hours Start 2026.09.05 @ 14:34:15 End 2026.09.05 @ 14:42:12 Sessions 1 Manual Loads 0 Difficulty Rogue Special Mode None Game No. 140 Rogue 140 Adventurer 0 Explorer 0 Win Type - Total 3 Types 3/0/0/0/0/0/0/0/0/0 Lore% 49 Gallery% 42 Achievement% 43 Wizard Run 0 Options --------- Layout 2 ASCII 0 Keyboard 0 Movement Arrows Keybinds 0 Fullscreen 1 Font 16/SmallcapsGlow Map View 50x49 Zoom Use 0% Tactical HUD 1 Map Filters NONE Filters NONE Steam SD RUN: ab7e219d-1ab5-4951-a794-414483fb35db